[Event "XX Gran Hotel Bali-A 2023"]
[Site "Benidorm"]
[Date "2023.12.08"]
[Round "9.12"]
[White "Ereza Vizcarra, Fernando"]
[Black "Granero Roca, Antonio"]
[Result "0-1"]
[ECO "E90"]
[WhiteElo "2116"]
[BlackElo "2273"]
[Annotator "RC"]
[PlyCount "124"]
[EventDate "2023.12.02"]
[EventType "swiss"]
[EventCountry "ESP"]
[SourceTitle "playchess.com"]
[Source "ChessBase"]
[SourceQuality "1"]
[TimeControl "5400+30"]

1. d4 {[%emt 0:00:02]} Nf6 {[%emt 0:00:22]} 2. Nf3 {[%emt 0:00:04]} g6 {[%emt 0:00:42]} 3. c4 {[%emt 0:01:36]} Bg7 {[%emt 0:00:45]} 4. Nc3 {[%emt 0:01:24]} d6 {[%emt 0:00:38]} 5. e4 {[%emt 0:00:08]} O-O {[%emt 0:00:46]} 6. h3 {[%emt 0:00:33]} e5 {[%emt 0:01:37]} 7. d5 {[%emt 0:00:18]} a5 {[%emt 0:01:04]} 8. Be3 {[%emt 0:15:09]} Na6 {[%emt 0:01:17]} 9. a3 {[%emt 0:03:19]} Bd7 {[%emt 0:05:26]} 10. Nd2 {[%emt 0:03:31]} Qe8 {[%emt 0:12:40]} 11. b3 {[%emt 0:04:34]} Nh5 {[%emt 0:01:54]} 12. g4 {[%emt 0:20:09]} Nf4 {[%emt 0:00:48]} 13. Qc2 {[%emt 0:09:45]} c6 {[%emt 0:02:32]} 14. Na4 {[%emt 0:09:51]} cxd5 {[%emt 0:14:19]} 15. Nb6 {[%emt 0:00:30]} d4 {[%emt 0:00:13]} 16. Bxf4 {[%emt 0:00:16]} exf4 {[%emt 0:00:10]} 17. Nxa8 {[%emt 0:00:27]} d3 {[%emt 0:03:25]} 18. Qb1 {[%emt 0:02:28]} Bxa1 {[%emt 0:02:06]} 19. Qxa1 {[%emt 0:00:06]} Qxa8 {[%emt 0:00:06]} 20. Bxd3 {[%emt 0:00:11]} Nc5 {[%emt 0:00:18]} 21. Bc2 {[%emt 0:00:18]} Qd8 {[%emt 0:03:21]} 22. Qd4 {[%emt 0:03:21]} Bc6 {[%emt 0:01:20]} 23. h4 {[%emt 0:01:51]} Qe7 {[%emt 0:01:54]} 24. Kd1 {[%emt 0:02:05]} Re8 {[%emt 0:05:17]} 25. f3 {[%emt 0:00:40]} Ne6 {[%emt 0:01:29]} 26. Qc3 {[%emt 0:00:11]} Qc7 {[%emt 0:01:12]} 27. h5 {[%emt 0:01:58]} Qb6 {[%emt 0:01:49]} 28. hxg6 {[%emt 0:06:57]} fxg6 {[%emt 0:00:23]} 29. Qf6 {[%emt 0:00:33]} Qc5 {[%emt 0:04:46]} 30. b4 {[%emt 0:04:04]} axb4 {[%emt 0:02:25]} 31. axb4 {[%emt 0:00:02]} Qe5 {[%emt 0:00:26]} 32. Qxe5 {[%emt 0:01:02]} dxe5 {[%emt 0:00:09]} 33. Nb3 {[%emt 0:00:08]} Ba4 {[%emt 0:01:35]} 34. Na5 {[%emt 0:03:36]} Bxc2+ {[%emt 0:01:38]} 35. Kxc2 {[%emt 0:00:10]} Nd4+ {[%emt 0:00:03]} 36. Kc3 {[%emt 0:00:30]} b6 {[%emt 0:00:24]} 37. Nb7 {[%emt 0:01:58]} Ra8 {[%emt 0:01:38]} 38. c5 {[%emt 0:00:48]} b5 {[%emt 0:01:24]} 39. Na5 {[%emt 0:01:15]} Nxf3 {[%emt 0:00:55]} 40. Nc6 {[%emt 0:00:57]} Kg7 {[%emt 0:03:22]} 41. Rd1 {[%emt 0:02:25]} Ra3+ {[%emt 0:02:52]} 42. Kb2 {[%emt 0:00:01]} Re3 {[%emt 0:00:08]} 43. Na5 {[%emt 0:01:39]} Re2+ {[%emt 0:03:08]} 44. Kc3 {[%emt 0:00:42]} Ng5 {[%emt 0:02:50]} 45. c6 {[%emt 0:00:51]} Nxe4+ {[%emt 0:00:11]} 46. Kb3 {[%emt 0:00:01]} Re3+ {[%emt 0:00:13]} 47. Kb2 {[%emt 0:00:01]} Rc3 {[%emt 0:03:32]} 48. Re1 {[%emt 0:00:35]} f3 {[%emt 0:00:23]} 49. Rxe4 {[%emt 0:00:29]} f2 {[%emt 0:00:10]} 50. Kxc3 {[%emt 0:00:51]} f1=Q {[%emt 0:00:09]} 51. Re3 {[%emt 0:00:32]} Qc1+ {[%emt 0:02:31]} 52. Kd3 {[%emt 0:00:04]} Qd1+ {[%emt 0:00:33]} 53. Ke4 {[%emt 0:00:27]} Qd4+ {[%emt 0:00:47]} 54. Kf3 {[%emt 0:00:00]} Qf4+ {[%emt 0:00:29]} 55. Ke2 {[%emt 0:00:02]} Qxg4+ {[%emt 0:00:09]} 56. Kd2 {[%emt 0:00:23]} Qd4+ {[%emt 0:03:13]} 57. Rd3 {[%emt 0:00:03]} Qb2+ {[%emt 0:00:18]} 58. Kd1 {[%emt 0:01:09]} Qb1+ {[%emt 0:01:00]} 59. Kd2 {[%emt 0:00:15]} Qb2+ {[%emt 0:05:10]} 60. Kd1 {[%emt 0:00:01]} Qxb4 {[%emt 0:00:30]} 61. Rd7+ {[%emt 0:00:40]} Kf6 {[%emt 0:00:19]} 62. c7 {[%emt 0:01:06]} Qg4+ {[%emt 0:00:12]} 0-1

[Event "XX Gran Hotel Bali-A 2023"]
[Site "Benidorm"]
[Date "2023.12.08"]
[Round "9.13"]
[White "Davtyan, David Arm."]
[Black "Gaurav Rajesh Zagade"]
[Result "1/2-1/2"]
[ECO "B07"]
[WhiteElo "2373"]
[BlackElo "2126"]
[Annotator "ChessBase"]
[PlyCount "84"]
[EventDate "2023.12.02"]
[EventType "swiss"]
[EventCountry "ESP"]
[SourceTitle "playchess.com"]
[Source "ChessBase"]
[SourceQuality "1"]
[TimeControl "5400+30"]

1. d4 {[%emt 0:06:24]} Nf6 {[%emt 0:00:07]} 2. Nf3 {[%emt 0:00:43]} g6 {[%emt 0:00:25]} 3. g3 {[%emt 0:00:39]} Bg7 {[%emt 0:00:09]} 4. Bg2 {[%emt 0:00:06]} O-O {[%emt 0:00:21]} 5. O-O {[%emt 0:00:11]} d6 {[%emt 0:00:47]} 6. Nc3 {[%emt 0:00:14]} Nbd7 {[%emt 0:01:41]} 7. e4 {[%emt 0:03:55]} e5 {[%emt 0:00:49]} 8. Re1 {[%emt 0:00:06]} c6 {[%emt 0:02:06]} 9. a4 {[%emt 0:00:08]} a5 {[%emt 0:08:21]} 10. h3 {[%emt 0:00:34]} exd4 {[%emt 0:12:26]} 11. Nxd4 {[%emt 0:00:10]} Nc5 {[%emt 0:01:16]} 12. Be3 {[%emt 0:03:13]} Re8 {[%emt 1:08:02]} 13. f3 {[%emt 1:20:37]} Ne6 {[%emt 0:00:30]} 14. f4 {[%emt 0:00:00]} d5 {[%emt 0:00:00]} 15. e5 {[%emt 0:00:00]} Nxd4 {[%emt 0:00:00]} 16. Qxd4 {[%emt 0:00:00]} Nd7 {[%emt 0:00:00]} 17. Rad1 {[%emt 0:00:00]} Bf8 {[%emt 0:00:00]} 18. Qd2 {[%emt 0:00:00]} Bc5 {[%emt 0:00:00]} 19. Bxc5 {[%emt 0:00:00]} Nxc5 {[%emt 0:00:00]} 20. Qf2 {[%emt 0:00:00]} Nd7 {[%emt 0:00:00]} 21. Bxd5 {[%emt 0:00:00]} cxd5 {[%emt 0:00:00]} 22. Nxd5 {[%emt 0:00:00]} Kg7 {[%emt 0:00:00]} 23. Qd4 {[%emt 0:00:00]} Re6 {[%emt 0:00:00]} 24. Nf6 {[%emt 0:00:00]} Qc7 {[%emt 0:00:00]} 25. Nxd7 {[%emt 0:00:00]} Bxd7 {[%emt 0:00:00]} 26. Qxd7 {[%emt 0:00:00]} Qxc2 {[%emt 0:00:00]} 27. Rd2 {[%emt 0:00:00]} Qb3 {[%emt 0:00:00]} 28. Kh2 {[%emt 0:00:00]} h5 {[%emt 0:00:00]} 29. Rc1 {[%emt 0:00:00]} h4 {[%emt 0:01:12]} 30. Rc3 {[%emt 0:00:00]} Qb4 {[%emt 0:00:59]} 31. Qd4 {[%emt 0:00:00]} hxg3+ {[%emt 0:00:13]} 32. Kxg3 {[%emt 0:00:00]} Qe7 {[%emt 0:01:15]} 33. Qd7 {[%emt 0:00:00]} Qb4 {[%emt 0:01:23]} 34. Rc7 {[%emt 0:00:00]} Rf8 {[%emt 0:00:51]} 35. Rxb7 {[%emt 0:00:00]} Qe4 {[%emt 0:01:06]} 36. Rf2 {[%emt 0:00:52]} Qe3+ {[%emt 0:00:29]} 37. Kg2 {[%emt 0:00:13]} Qe4+ {[%emt 0:01:08]} 38. Kh2 {[%emt 0:00:03]} Rc6 {[%emt 0:01:01]} 39. Rc7 {[%emt 0:01:50]} Qe3 {[%emt 0:00:46]} 40. Kg2 {[%emt 0:01:40]} Qe4+ {[%emt 0:00:05]} 41. Kh2 {[%emt 0:00:27]} Qe3 {[%emt 0:00:09]} 42. Kg2 {[%emt 0:00:15]} Qe4+ {[%emt 0:00:05]} 1/2-1/2

[Event "XX Gran Hotel Bali-A 2023"]
[Site "Benidorm"]
[Date "2023.12.08"]
[Round "9.14"]
[White "Ni, Viktorija"]
[Black "Garcia Martin, Marta"]
[Result "0-1"]
[ECO "E16"]
[WhiteElo "2139"]
[BlackElo "2355"]
[Annotator "RC"]
[PlyCount "88"]
[EventDate "2023.12.02"]
[EventType "swiss"]
[EventCountry "ESP"]
[SourceTitle "playchess.com"]
[Source "ChessBase"]
[SourceQuality "1"]
[TimeControl "5400+30"]

1. d4 {[%emt 0:11:36]} e6 {[%emt 0:02:05]} 2. c4 {[%emt 0:01:06]} b6 {[%emt 0:00:50]} 3. Nf3 {[%emt 0:01:51]} Bb7 {[%emt 0:00:07]} 4. g3 {[%emt 0:02:28]} Bb4+ {[%emt 0:00:24]} 5. Bd2 {[%emt 0:03:59]} Bxd2+ {[%emt 0:05:09]} 6. Qxd2 {[%emt 0:01:32]} Nf6 {[%emt 0:00:30]} 7. Nc3 {[%emt 0:02:12]} O-O {[%emt 0:00:26]} 8. Bg2 {[%emt 0:01:03]} Ne4 {[%emt 0:06:22]} 9. Nxe4 {[%emt 0:03:40]} Bxe4 {[%emt 0:00:06]} 10. Nh4 {[%emt 0:07:27]} Bxg2 {[%emt 0:02:35]} 11. Nxg2 {[%emt 0:00:04]} d5 {[%emt 0:01:37]} 12. b3 {[%emt 0:04:53]} Nc6 {[%emt 0:10:00]} 13. Rc1 {[%emt 0:17:18]} dxc4 {[%emt 0:06:51]} 14. Rxc4 {[%emt 0:05:02]} Qd5 {[%emt 0:00:25]} 15. O-O {[%emt 0:02:21]} Rfd8 {[%emt 0:00:56]} 16. Ne3 {[%emt 0:03:13]} Qd6 {[%emt 0:11:18]} 17. d5 {[%emt 0:08:59]} Ne5 {[%emt 0:08:12]} 18. Rh4 {[%emt 0:07:43]} exd5 {[%emt 0:02:32]} 19. f4 {[%emt 0:01:08]} Ng6 {[%emt 0:01:41]} 20. Rh5 {[%emt 0:00:21]} Ne7 {[%emt 0:07:34]} 21. Re5 {[%emt 0:05:55]} f6 {[%emt 0:04:44]} 22. Rh5 {[%emt 0:00:56]} c5 {[%emt 0:05:39]} 23. Qd3 {[%emt 0:02:51]} g6 {[%emt 0:00:37]} 24. Rh4 {[%emt 0:00:32]} f5 {[%emt 0:05:24]} 25. g4 {[%emt 0:01:18]} Qf6 {[%emt 0:01:34]} 26. g5 {[%emt 0:02:44]} Qe6 {[%emt 0:00:46]} 27. Rh3 {[%emt 0:01:02]} d4 {[%emt 0:04:34]} 28. Nc4 {[%emt 0:00:34]} Nc6 {[%emt 0:00:16]} 29. a4 {[%emt 0:00:34]} Rd7 {[%emt 0:00:57]} 30. Rf2 {[%emt 0:00:34]} Re8 {[%emt 0:00:20]} 31. Rhf3 {[%emt 0:00:24]} Qe4 {[%emt 0:05:39]} 32. Qd2 {[%emt 0:00:36]} Red8 {[%emt 0:02:18]} 33. Nb2 {[%emt 0:00:31]} Nb4 {[%emt 0:00:11]} 34. Nd3 {[%emt 0:00:25]} Nxd3 {[%emt 0:00:21]} 35. exd3 {[%emt 0:00:36]} Qd5 {[%emt 0:00:08]} 36. b4 {[%emt 0:00:21]} c4 {[%emt 0:01:17]} 37. dxc4 {[%emt 0:00:32]} Qxc4 {[%emt 0:00:04]} 38. Rd3 {[%emt 0:00:17]} Re8 {[%emt 0:00:37]} 39. Re2 {[%emt 0:00:49]} Re4 {[%emt 0:00:23]} 40. Kf2 {[%emt 0:00:30]} Kf7 {[%emt 0:04:13]} 41. Qa2 {[%emt 0:00:32]} Rxf4+ {[%emt 0:00:23]} 42. Kg2 {[%emt 0:00:29]} Rg4+ {[%emt 0:00:41]} 43. Kf3 {[%emt 0:00:22]} Qxa2 {[%emt 0:00:07]} 44. Rxa2 {[%emt 0:00:02]} Rxg5 {[%emt 0:00:11]} 0-1

[Event "XX Gran Hotel Bali-A 2023"]
[Site "Benidorm"]
[Date "2023.12.08"]
[Round "9.15"]
[White "Madina Yadarola, Martin"]
[Black "Ingunza Curro, Andres"]
[Result "1/2-1/2"]
[ECO "D05"]
[WhiteElo "2107"]
[BlackElo "2328"]
[Annotator "RC"]
[PlyCount "47"]
[EventDate "2023.12.02"]
[EventType "swiss"]
[EventCountry "ESP"]
[SourceTitle "playchess.com"]
[Source "ChessBase"]
[SourceQuality "1"]
[TimeControl "5400+30"]

1. d4 {[%emt 0:00:20]} Nf6 {[%emt 0:07:54]} 2. Nf3 {[%emt 0:00:24]} e6 {[%emt 0:00:26]} 3. e3 {[%emt 0:00:40]} b6 {[%emt 0:01:51]} 4. Bd3 {[%emt 0:00:16]} Bb7 {[%emt 0:00:09]} 5. Nbd2 {[%emt 0:00:54]} d5 {[%emt 0:07:12]} 6. Ne5 {[%emt 0:02:26]} g6 {[%emt 0:03:45]} 7. O-O {[%emt 0:01:31]} Bg7 {[%emt 0:00:20]} 8. f4 {[%emt 0:00:25]} O-O {[%emt 0:00:40]} 9. Qf3 {[%emt 0:00:53]} c5 {[%emt 0:00:47]} 10. c3 {[%emt 0:00:21]} Ba6 {[%emt 0:01:10]} 11. Bxa6 {[%emt 0:05:20]} Nxa6 {[%emt 0:00:13]} 12. g4 {[%emt 0:05:37]} b5 {[%emt 0:07:56]} 13. Qe2 {[%emt 0:06:01]} c4 {[%emt 0:09:34]} 14. g5 {[%emt 0:11:28]} Nh5 {[%emt 0:09:27]} 15. b3 {[%emt 0:05:17]} Bxe5 {[%emt 0:26:08]} 16. dxe5 {[%emt 0:17:02]} cxb3 {[%emt 0:02:14]} 17. Nxb3 {[%emt 0:09:30]} Qb6 {[%emt 0:03:24]} 18. Nd4 {[%emt 0:01:04]} Rfc8 {[%emt 0:00:38]} 19. Rb1 {[%emt 0:03:21]} Rxc3 {[%emt 0:03:05]} 20. Bd2 {[%emt 0:06:46]} Rc5 {[%emt 0:05:45]} 21. Nxb5 {[%emt 0:00:33]} Nc7 {[%emt 0:04:08]} 22. Nd4 {[%emt 0:06:52]} Qa6 {[%emt 0:00:08]} 23. Qxa6 Nxa6 24. Bb4 {[%emt 0:15:29]} 1/2-1/2

[Event "XX Gran Hotel Bali-A 2023"]
[Site "Benidorm"]
[Date "2023.12.08"]
[Round "9.16"]
[White "Escartin Lacasa, Jose"]
[Black "Aakash Sharadchandra, Dalvi"]
[Result "0-1"]
[ECO "D02"]
[WhiteElo "2272"]
[BlackElo "2130"]
[Annotator "RC"]
[PlyCount "80"]
[EventDate "2023.12.02"]
[EventType "swiss"]
[EventCountry "ESP"]
[SourceTitle "playchess.com"]
[Source "ChessBase"]
[SourceQuality "1"]
[TimeControl "5400+30"]

1. d4 {[%emt 0:02:43]} d5 {[%emt 0:05:33]} 2. Nf3 {[%emt 0:00:22]} e6 {[%emt 0:00:17]} 3. g3 {[%emt 0:00:05]} c5 {[%emt 0:01:15]} 4. Bg2 {[%emt 0:00:07]} cxd4 {[%emt 0:00:23]} 5. O-O {[%emt 0:00:07]} Nf6 {[%emt 0:00:32]} 6. Nxd4 {[%emt 0:00:10]} e5 {[%emt 0:01:21]} 7. Nb3 {[%emt 0:00:05]} Be6 {[%emt 0:03:09]} 8. Nc3 {[%emt 0:00:48]} Be7 {[%emt 0:03:10]} 9. f4 {[%emt 0:00:06]} exf4 {[%emt 0:00:30]} 10. gxf4 {[%emt 0:00:05]} g6 {[%emt 0:01:07]} 11. Kh1 {[%emt 0:03:08]} Nc6 {[%emt 0:02:30]} 12. Be3 {[%emt 0:01:36]} O-O {[%emt 0:04:19]} 13. Bg1 {[%emt 0:00:48]} Re8 {[%emt 0:05:18]} 14. Nd4 {[%emt 0:23:02]} Nxd4 {[%emt 0:03:39]} 15. Qxd4 {[%emt 0:00:06]} Qd7 {[%emt 0:05:11]} 16. Rad1 {[%emt 0:08:12]} Red8 {[%emt 0:02:44]} 17. Qf2 {[%emt 0:14:02]} Qc6 {[%emt 0:17:58]} 18. Qh4 {[%emt 0:08:27]} Bf5 {[%emt 0:02:31]} 19. Bd4 {[%emt 0:00:19]} Qe6 {[%emt 0:01:19]} 20. Qf2 {[%emt 0:09:05]} Bxc2 {[%emt 0:09:07]} 21. Rc1 {[%emt 0:00:54]} Bf5 {[%emt 0:00:08]} 22. Bxa7 {[%emt 0:06:25]} Ne4 {[%emt 0:07:14]} 23. Nxe4 {[%emt 0:02:45]} Bxe4 {[%emt 0:00:07]} 24. Bb6 {[%emt 0:02:12]} Rdc8 {[%emt 0:03:28]} 25. Bxe4 {[%emt 0:04:22]} Qxe4+ {[%emt 0:00:58]} 26. Kg1 {[%emt 0:01:00]} Bf6 {[%emt 0:00:34]} 27. f5 {[%emt 0:03:49]} g5 {[%emt 0:04:14]} 28. Rxc8+ {[%emt 0:01:56]} Rxc8 {[%emt 0:00:02]} 29. Qg2 {[%emt 0:04:51]} Rc2 {[%emt 0:03:03]} 30. Qxe4 {[%emt 0:00:06]} dxe4 {[%emt 0:00:04]} 31. b3 {[%emt 0:00:26]} Rxa2 {[%emt 0:00:21]} 32. Rc1 {[%emt 0:03:48]} Rxe2 {[%emt 0:01:14]} 33. Rc8+ {[%emt 0:00:28]} Kg7 {[%emt 0:00:06]} 34. Rb8 {[%emt 0:00:21]} Rb2 {[%emt 0:00:31]} 35. Bc5 {[%emt 0:00:05]} Be5 {[%emt 0:00:42]} 36. Rxb7 {[%emt 0:00:03]} Bxh2+ {[%emt 0:01:21]} 37. Kf1 {[%emt 0:00:03]} Be5 {[%emt 0:00:14]} 38. b4 {[%emt 0:00:58]} h5 {[%emt 0:00:16]} 39. Re7 {[%emt 0:00:47]} Kf6 {[%emt 0:00:22]} 40. Rd7 {[%emt 0:01:12]} h4 {[%emt 0:00:33]} 0-1

[Event "XX Gran Hotel Bali-A 2023"]
[Site "Benidorm"]
[Date "2023.12.08"]
[Round "9.17"]
[White "Gomez Aguirre, Juan Alberto"]
[Black "Petrovic, Aleksa"]
[Result "1/2-1/2"]
[ECO "D10"]
[WhiteElo "2068"]
[BlackElo "2272"]
[Annotator "RC"]
[PlyCount "90"]
[EventDate "2023.12.02"]
[EventType "swiss"]
[EventCountry "ESP"]
[SourceTitle "playchess.com"]
[Source "ChessBase"]
[SourceQuality "1"]
[TimeControl "5400+30"]

1. d4 {[%emt 0:00:02]} Nf6 {[%emt 0:05:16]} 2. c4 {[%emt 0:00:04]} c6 {[%emt 0:00:27]} 3. Nc3 {[%emt 0:00:08]} d5 {[%emt 0:00:06]} 4. cxd5 {[%emt 0:00:04]} cxd5 {[%emt 0:00:02]} 5. Bf4 {[%emt 0:00:09]} e6 {[%emt 0:00:30]} 6. e3 {[%emt 0:00:05]} Bd6 {[%emt 0:00:04]} 7. Bxd6 {[%emt 0:01:48]} Qxd6 {[%emt 0:00:06]} 8. Bd3 {[%emt 0:00:03]} O-O {[%emt 0:00:07]} 9. f4 {[%emt 0:03:38]} Bd7 {[%emt 0:06:17]} 10. Nf3 {[%emt 0:01:12]} b5 {[%emt 0:02:12]} 11. O-O {[%emt 0:07:49]} a6 {[%emt 0:10:44]} 12. Ne5 {[%emt 0:01:38]} Be8 {[%emt 0:00:45]} 13. Rc1 {[%emt 0:07:41]} Nfd7 {[%emt 0:05:36]} 14. Qf3 {[%emt 0:08:15]} f5 {[%emt 0:06:43]} 15. g4 {[%emt 0:03:34]} g6 {[%emt 0:00:25]} 16. gxf5 {[%emt 0:04:29]} gxf5 {[%emt 0:00:07]} 17. Kh1 {[%emt 0:00:10]} Kh8 {[%emt 0:10:44]} 18. Rg1 {[%emt 0:04:20]} Ra7 {[%emt 0:04:58]} 19. Rg2 {[%emt 0:12:41]} Nf6 {[%emt 0:02:23]} 20. Rcg1 {[%emt 0:01:10]} Rg8 {[%emt 0:05:40]} 21. Rxg8+ {[%emt 0:05:33]} Nxg8 {[%emt 0:00:02]} 22. Qg3 {[%emt 0:04:26]} Qf8 {[%emt 0:03:12]} 23. Qh4 {[%emt 0:05:24]} Re7 {[%emt 0:03:51]} 24. Ne2 {[%emt 0:14:23]} Nd7 {[%emt 0:02:58]} 25. Nc6 {[%emt 0:03:45]} Rg7 {[%emt 0:00:20]} 26. Rxg7 {[%emt 0:00:34]} Qxg7 {[%emt 0:00:42]} 27. Ne5 {[%emt 0:00:18]} Ndf6 {[%emt 0:00:37]} 28. Qg3 {[%emt 0:01:25]} Qe7 {[%emt 0:02:29]} 29. Nc1 {[%emt 0:01:47]} Qb4 {[%emt 0:06:13]} 30. Nb3 {[%emt 0:01:18]} Nh6 {[%emt 0:02:03]} 31. Qh4 {[%emt 0:01:33]} Nhg8 {[%emt 0:03:05]} 32. Bc2 {[%emt 0:02:31]} Qa4 {[%emt 0:03:50]} 33. a3 {[%emt 0:01:25]} b4 {[%emt 0:00:10]} 34. axb4 {[%emt 0:01:11]} Qxb4 {[%emt 0:00:22]} 35. Qf2 {[%emt 0:01:43]} Ne4 {[%emt 0:02:37]} 36. Bxe4 {[%emt 0:00:23]} Qxb3 {[%emt 0:00:13]} 37. Bf3 {[%emt 0:00:15]} a5 {[%emt 0:02:11]} 38. Qd2 {[%emt 0:01:17]} a4 {[%emt 0:01:32]} 39. Qc1 {[%emt 0:00:03]} Qb7 {[%emt 0:03:05]} 40. Qc3 {[%emt 0:00:28]} Kg7 {[%emt 0:03:36]} 41. Qa3 {[%emt 0:00:45]} Qc7 {[%emt 0:02:05]} 42. Qc5 {[%emt 0:00:23]} Qb8 {[%emt 0:00:32]} 43. Qa3 {[%emt 0:00:21]} Qc7 {[%emt 0:00:32]} 44. Qc5 {[%emt 0:00:04]} Qb8 {[%emt 0:00:05]} 45. Qa3 {[%emt 0:00:25]} Qc7 {[%emt 0:00:05]} 1/2-1/2

[Event "XX Gran Hotel Bali-A 2023"]
[Site "Benidorm"]
[Date "2023.12.08"]
[Round "9.18"]
[White "Korneev Leskova, Svyatoslav"]
[Black "Salvador Buiza, Victor"]
[Result "0-1"]
[ECO "A37"]
[WhiteElo "2252"]
[BlackElo "2122"]
[Annotator "RC"]
[PlyCount "76"]
[EventDate "2023.12.02"]
[EventType "swiss"]
[EventCountry "ESP"]
[SourceTitle "playchess.com"]
[Source "ChessBase"]
[SourceQuality "1"]
[TimeControl "5400+30"]

1. c4 {[%emt 0:00:08]} c5 {[%emt 0:00:31]} 2. g3 {[%emt 0:00:11]} Nc6 {[%emt 0:00:11]} 3. Bg2 {[%emt 0:00:14]} g6 {[%emt 0:00:03]} 4. Nc3 {[%emt 0:00:05]} Bg7 {[%emt 0:00:05]} 5. Nf3 {[%emt 0:00:11]} e5 {[%emt 0:00:20]} 6. O-O {[%emt 0:00:19]} d6 {[%emt 0:00:33]} 7. a3 {[%emt 0:00:46]} a5 {[%emt 0:00:38]} 8. Ne1 {[%emt 0:00:29]} Be6 {[%emt 0:00:14]} 9. d3 {[%emt 0:00:12]} Nge7 {[%emt 0:00:05]} 10. Nc2 {[%emt 0:00:09]} O-O {[%emt 0:00:40]} 11. Ne3 {[%emt 0:00:26]} Qd7 {[%emt 0:05:20]} 12. Ned5 {[%emt 0:00:06]} Rab8 {[%emt 0:00:41]} 13. Qa4 {[%emt 0:02:13]} Rfd8 {[%emt 0:10:06]} 14. Bg5 {[%emt 0:00:36]} Bxd5 {[%emt 0:11:09]} 15. Nxd5 {[%emt 0:01:28]} b6 {[%emt 0:05:30]} 16. b4 {[%emt 0:16:13]} axb4 {[%emt 0:08:05]} 17. axb4 {[%emt 0:00:35]} cxb4 {[%emt 0:04:30]} 18. Nxb4 {[%emt 0:03:45]} Nxb4 {[%emt 0:03:12]} 19. Qxb4 {[%emt 0:00:06]} Bf8 {[%emt 0:08:34]} 20. Bxe7 {[%emt 0:03:43]} Bxe7 {[%emt 0:00:22]} 21. Bd5 {[%emt 0:00:04]} Kg7 {[%emt 0:02:44]} 22. Rfb1 {[%emt 0:09:43]} Rdc8 {[%emt 0:00:30]} 23. Ra6 {[%emt 0:01:55]} Bd8 {[%emt 0:01:50]} 24. Rba1 {[%emt 0:01:16]} Rc5 {[%emt 0:03:53]} 25. Ra7 {[%emt 0:01:45]} Bc7 {[%emt 0:00:18]} 26. e3 {[%emt 0:05:34]} Qc8 {[%emt 0:06:37]} 27. d4 {[%emt 0:03:04]} exd4 {[%emt 0:00:06]} 28. Qb2 {[%emt 0:00:29]} Qd8 {[%emt 0:03:31]} 29. Qxd4+ {[%emt 0:13:45]} Qf6 {[%emt 0:00:31]} 30. g4 {[%emt 0:00:21]} h6 {[%emt 0:02:17]} 31. f4 {[%emt 0:01:29]} b5 {[%emt 0:03:46]} 32. g5 {[%emt 0:00:04]} hxg5 {[%emt 0:00:06]} 33. fxg5 {[%emt 0:00:03]} Qe5 {[%emt 0:00:09]} 34. Rf1 {[%emt 0:07:22]} Rf8 {[%emt 0:01:42]} 35. Ra8 {[%emt 0:01:19]} Qxd4 {[%emt 0:03:42]} 36. Rxf8 {[%emt 0:01:01]} Qxe3+ {[%emt 0:00:26]} 37. Kh1 {[%emt 0:00:05]} Kxf8 {[%emt 0:00:16]} 38. Rxf7+ {[%emt 0:00:03]} Ke8 {[%emt 0:00:12]} 0-1

[Event "XX Gran Hotel Bali-A 2023"]
[Site "Benidorm"]
[Date "2023.12.08"]
[Round "9.19"]
[White "Alvarez Perez, Adan"]
[Black "Exposito Milan, Adrian"]
[Result "0-1"]
[ECO "D35"]
[WhiteElo "2241"]
[BlackElo "2073"]
[Annotator "RC"]
[PlyCount "72"]
[EventDate "2023.12.02"]
[EventType "swiss"]
[EventCountry "ESP"]
[SourceTitle "playchess.com"]
[Source "ChessBase"]
[SourceQuality "1"]
[TimeControl "5400+30"]

1. d4 {[%emt 0:14:39]} d5 {[%emt 0:01:00]} 2. c4 {[%emt 0:00:18]} e6 {[%emt 0:00:33]} 3. Nc3 {[%emt 0:00:09]} Nf6 {[%emt 0:00:26]} 4. cxd5 {[%emt 0:00:52]} exd5 {[%emt 0:00:42]} 5. Nf3 {[%emt 0:00:07]} c6 {[%emt 0:00:57]} 6. Bg5 {[%emt 0:00:16]} Be7 {[%emt 0:00:48]} 7. e3 {[%emt 0:00:12]} Nbd7 {[%emt 0:05:30]} 8. Bd3 {[%emt 0:00:07]} Ne4 {[%emt 0:01:47]} 9. Bf4 {[%emt 0:06:10]} Ndf6 {[%emt 0:03:11]} 10. Ne5 {[%emt 0:08:30]} Be6 {[%emt 0:11:00]} 11. Qc2 {[%emt 0:00:30]} Nd6 {[%emt 0:01:45]} 12. h3 {[%emt 0:00:39]} g6 {[%emt 0:02:01]} 13. g4 {[%emt 0:03:57]} Nd7 {[%emt 0:05:33]} 14. O-O-O {[%emt 0:02:06]} Nb6 {[%emt 0:05:54]} 15. Kb1 {[%emt 0:01:13]} f6 {[%emt 0:02:59]} 16. Bxg6+ {[%emt 0:03:47]} hxg6 {[%emt 0:04:26]} 17. Nxg6 {[%emt 0:02:05]} Rg8 {[%emt 0:00:57]} 18. h4 {[%emt 0:01:58]} Bxg4 {[%emt 0:04:15]} 19. Rdg1 {[%emt 0:00:35]} Bf5 {[%emt 0:01:38]} 20. e4 {[%emt 0:00:00]} Nxe4 {[%emt 0:05:52]} 21. Ka1 {[%emt 0:00:02]} Rxg6 {[%emt 0:02:49]} 22. Rxg6 {[%emt 0:00:33]} Bxg6 {[%emt 0:00:02]} 23. f3 {[%emt 0:00:15]} Qd7 {[%emt 0:04:06]} 24. Qg2 {[%emt 0:04:37]} Qf5 {[%emt 0:05:15]} 25. fxe4 {[%emt 0:00:08]} dxe4 {[%emt 0:00:06]} 26. h5 {[%emt 0:00:20]} Bh7 {[%emt 0:00:43]} 27. Qh2 {[%emt 0:11:27]} Rd8 {[%emt 0:02:35]} 28. Rg1 {[%emt 0:03:00]} Nd5 {[%emt 0:03:01]} 29. Bc7 {[%emt 0:02:24]} Rd7 {[%emt 0:03:02]} 30. Nxd5 {[%emt 0:00:06]} Rxd5 {[%emt 0:00:08]} 31. h6 {[%emt 0:01:57]} Rxd4 {[%emt 0:01:00]} 32. Qg3 {[%emt 0:04:43]} Rd3 {[%emt 0:01:05]} 33. Qg7 {[%emt 0:00:22]} e3 {[%emt 0:01:23]} 34. Bd8 {[%emt 0:01:31]} Kxd8 {[%emt 0:00:33]} 35. Qh8+ {[%emt 0:00:13]} Kc7 {[%emt 0:00:43]} 36. Qe8 {[%emt 0:00:06]} Qd7 {[%emt 0:00:15]} 0-1